fUSD/lending_fUSD_20250105
["ID","MTS","AMOUNT","RATE_DAILY","PERIOD"]
[347801750,1736116240068,-500.0,0.00011366,2]
[347801751,1736116240077,-500.0,0.00011366,2]
[347801752,1736116240087,-669.7,0.00011366,2]
[347801753,1736116240097,-557.44,0.00011366,2]
[347801754,1736116240107,-500.0,0.00011366,2]
[347801755,1736116240116,-164.481423,0.00011366,2]
[347801756,1736116240125,-500.0,0.00011366,2]
[347801757,1736116240136,-500.0,0.00011366,2]
[347801758,1736116240145,-500.0,0.00011366,2]
[347801759,1736116240155,-500.0,0.00011366,2]
[347801760,1736116240166,-798.97,0.00011366,2]
[347801761,1736116240176,-800.99,0.00011366,2]
[347801762,1736116240188,-500.0,0.00011366,2]
[347801763,1736116240198,-500.0,0.00011366,2]
[347801764,1736116240210,-500.0,0.00011366,2]
[347801765,1736116240219,-153.659758,0.00011366,2]
[347801766,1736116240228,-500.0,0.00011366,2]
[347801767,1736116240237,-155.490194,0.00011366,2]
[347801768,1736116240247,-500.0,0.00011366,2]
[347801769,1736116240256,-500.0,0.00011366,2]
[347801770,1736116240265,-155.733661,0.00011366,2]
[347801771,1736116240274,-500.0,0.00011366,2]
[347801772,1736116240283,-500.0,0.00011366,2]
[347801774,1736116240292,-500.0,0.00011366,2]
[347801775,1736116240302,-500.0,0.00011366,2]
[347801776,1736116240311,-500.0,0.00011366,2]
[347801777,1736116240320,-500.0,0.00011366,2]
[347801778,1736116240329,-500.0,0.00011366,2]
[347801779,1736116240339,-500.0,0.00011366,2]
[347801780,1736116240348,-500.0,0.00011366,2]
[347801781,1736116240358,-500.0,0.00011367,2]
[347801782,1736116240366,-300.0,0.00011367,2]
[347801783,1736116240375,-526.38,0.00011367,2]
[347801784,1736116240385,-500.0,0.00011367,2]
[347801785,1736116240394,-500.0,0.00011367,2]
[347801786,1736116240403,-500.0,0.00011367,2]
[347801787,1736116240414,-500.0,0.00011367,2]
[347801788,1736116240423,-189.73375683,0.00011367,2]
[347801789,1736116240432,-500.0,0.00011367,2]
[347801790,1736116240441,-500.0,0.00011367,2]
[347801791,1736116240450,-500.0,0.00011367,2]
[347801792,1736116240460,-500.0,0.00011367,2]
[347801793,1736116240469,-500.0,0.00011367,2]
[347801794,1736116240478,-500.0,0.00011367,2]
[347801795,1736116240487,-500.0,0.00011367,2]
[347801796,1736116240496,-500.0,0.00011367,2]
[347801797,1736116240505,-500.0,0.00011367,2]
[347801798,1736116240515,-500.0,0.00011367,2]
[347801799,1736116240524,-500.0,0.00011367,2]
[347801800,1736116240535,-500.0,0.00011367,2]
[347801801,1736116240545,-500.0,0.00011367,2]
[347801802,1736116240554,-500.0,0.00011367,2]
[347801803,1736116240563,-500.0,0.00011367,2]
[347801804,1736116240573,-500.0,0.00011367,2]
[347801805,1736116240582,-589.05,0.00011367,2]
[347801806,1736116240591,-500.0,0.00011367,2]
[347801807,1736116240600,-1259.26338689,0.00011439,2]
[347801808,1736116240609,-500.0,0.00011445,2]
[347801809,1736116240619,-516.77,0.00011445,2]
[347801810,1736116240627,-1318.07143007,0.00011452,2]
[347801811,1736116240636,-2751.0,0.00011507,2]
[347801812,1736116240645,-500.0,0.00011536,2]
[347801813,1736116240654,-500.0,0.00011536,2]
[347801814,1736116240664,-500.0,0.00011536,2]
[347801815,1736116240673,-500.0,0.00011536,2]
[347801816,1736116240682,-500.0,0.00011536,2]
[347801817,1736116240692,-500.0,0.00011536,2]
[347801818,1736116240701,-500.0,0.00011536,2]
[347801819,1736116240710,-500.0,0.00011536,2]
[347801820,1736116240719,-500.0,0.00011536,2]
[347801821,1736116240728,-500.0,0.00011536,2]
[347801822,1736116240738,-500.0,0.00011536,2]
[347801823,1736116240747,-500.0,0.00011536,2]
[347801824,1736116240756,-500.0,0.00011536,2]
[347801825,1736116240765,-500.0,0.00011536,2]
[347801826,1736116240775,-500.0,0.00011536,2]
[347801827,1736116240785,-500.0,0.00011536,2]
[347801828,1736116240794,-500.0,0.00011536,2]
[347801829,1736116240807,-500.0,0.00011536,2]
[347801830,1736116240816,-500.0,0.00011536,2]
[347801831,1736116240825,-500.0,0.00011536,2]
[347801832,1736116240834,-500.0,0.00011536,2]
[347801833,1736116240844,-404.0531307,0.00011536,2]
[347801834,1736116240853,-625.22,0.00011536,2]
[347801835,1736116240862,-500.0,0.00011536,2]
[347801836,1736116240872,-500.0,0.00011536,2]
[347801837,1736116240881,-500.0,0.00011536,2]
[347801838,1736116240894,-500.0,0.00011536,2]
[347801839,1736116240903,-500.0,0.00011536,2]
[347801840,1736116240912,-500.0,0.00011536,2]
[347801841,1736116240922,-561.99,0.00011536,2]
[347801842,1736116240932,-500.0,0.00011536,2]
[347801843,1736116240941,-500.0,0.00011536,2]
[347801844,1736116240951,-500.0,0.00011536,2]
[347801845,1736116240960,-500.0,0.00011536,2]
[347801846,1736116240970,-500.0,0.00011536,2]
[347801847,1736116240979,-41.92217888,0.00011536,2]
[347801849,1736116241382,-458.07782112,0.00011536,2]
[347801850,1736116241392,-500.0,0.00011536,2]
[347801851,1736116241401,-500.0,0.00011536,2]
[347801852,1736116241410,-500.0,0.00011536,2]
[347801853,1736116241419,-500.0,0.00011536,2]
[347801854,1736116241428,-500.0,0.00011536,2]
[347801855,1736116241437,-500.0,0.00011536,2]
[347801856,1736116241449,-500.0,0.00011536,2]
[347801857,1736116241460,-500.0,0.00011536,2]
[347801858,1736116241470,-500.0,0.00011536,2]
[347801859,1736116241480,-500.0,0.00011536,2]
[347801860,1736116241490,-567.59924121,0.00011536,2]
[347801861,1736116241499,-500.0,0.00011536,2]
[347801862,1736116241510,-559.8,0.00011536,2]
[347801863,1736116241520,-750.98,0.00011536,2]
[347801864,1736116241529,-500.0,0.00011536,2]
[347801865,1736116241538,-500.0,0.00011536,2]
[347801866,1736116241548,-500.0,0.00011536,2]
[347801867,1736116241557,-522.99,0.00011536,2]
[347801868,1736116241565,-500.0,0.00011536,2]
[347801869,1736116241574,-500.0,0.00011536,2]
[347801870,1736116241584,-500.0,0.00011536,2]
[347801871,1736116241593,-500.0,0.00011536,2]
[347801872,1736116241603,-500.0,0.00011536,2]
[347801873,1736116241612,-614.30932383,0.00011536,2]
[347801874,1736116241621,-614.21,0.00011536,2]
[347801875,1736116241631,-500.0,0.00011536,2]
[347801876,1736116241640,-500.0,0.00011536,2]
[347801877,1736116241649,-500.0,0.00011536,2]
[347801878,1736116241658,-500.0,0.00011536,2]
[347801879,1736116241668,-567.42,0.00011536,2]
[347801880,1736116241677,-500.0,0.00011536,2]
[347801881,1736116241686,-500.0,0.00011536,2]
[347801882,1736116241695,-500.0,0.00011536,2]
[347801883,1736116241704,-500.0,0.00011536,2]
[347801884,1736116241713,-500.0,0.00011536,2]
[347801885,1736116241722,-500.0,0.00011536,2]
[347801886,1736116241731,-500.0,0.00011536,2]
[347801887,1736116241740,-500.0,0.00011536,2]
[347801888,1736116241750,-503.42,0.00011536,2]
[347801889,1736116241759,-500.0,0.00011536,2]
[347801890,1736116241768,-500.0,0.00011536,2]
[347801891,1736116241779,-500.0,0.00011536,2]
[347801892,1736116241788,-500.0,0.00011536,2]
[347801893,1736116241797,-500.0,0.00011536,2]
[347801894,1736116241806,-500.0,0.00011536,2]
[347801895,1736116241815,-500.0,0.00011536,2]
[347801896,1736116241825,-500.0,0.00011536,2]
[347801897,1736116241834,-500.0,0.00011536,2]
[347801898,1736116241843,-500.0,0.00011536,2]
[347801899,1736116241852,-500.0,0.00011536,2]
[347801900,1736116241861,-500.0,0.00011536,2]
[347801901,1736116241870,-500.0,0.00011536,2]
[347801902,1736116241879,-500.0,0.00011536,2]
[347801903,1736116241889,-500.0,0.00011536,2]
[347801904,1736116241899,-500.0,0.00011536,2]
[347801905,1736116241908,-500.0,0.00011536,2]
[347801906,1736116241917,-500.0,0.00011536,2]
[347801907,1736116241926,-500.0,0.00011536,2]
[347801908,1736116241935,-500.0,0.00011536,2]
[347801909,1736116241944,-500.0,0.00011536,2]
[347801910,1736116241954,-500.0,0.00011536,2]
[347801911,1736116241963,-591.06,0.00011536,2]
[347801912,1736116241973,-500.0,0.00011536,2]
[347801913,1736116241983,-500.0,0.00011536,2]
[347801914,1736116241991,-500.0,0.00011536,2]
[347801915,1736116242001,-500.0,0.00011536,2]
[347801916,1736116242010,-500.0,0.00011536,2]
[347801917,1736116242019,-500.0,0.00011536,2]
[347801918,1736116242029,-500.0,0.00011536,2]
[347801919,1736116242038,-500.0,0.00011536,2]
[347801920,1736116242047,-500.0,0.00011536,2]
[347801921,1736116242059,-500.0,0.00011536,2]
[347801922,1736116242070,-500.0,0.00011536,2]
[347801923,1736116242080,-500.0,0.00011536,2]
[347801924,1736116242091,-500.0,0.00011536,2]
[347801925,1736116242101,-500.0,0.00011536,2]
[347801926,1736116242111,-500.0,0.00011536,2]
[347801927,1736116242123,-500.0,0.00011536,2]
[347801928,1736116242133,-500.0,0.00011536,2]
[347801929,1736116242142,-500.0,0.00011536,2]
[347801930,1736116242152,-500.0,0.00011536,2]
[347801931,1736116242163,-500.0,0.00011536,2]
[347801932,1736116242172,-500.0,0.00011536,2]
[347801933,1736116242185,-586.55,0.00011536,2]
[347801934,1736116242195,-500.0,0.00011536,2]
[347801935,1736116242206,-500.0,0.00011536,2]
[347801936,1736116242216,-500.0,0.00011536,2]
[347801937,1736116242227,-500.0,0.00011536,2]
[347801938,1736116242237,-500.0,0.00011536,2]
[347801939,1736116242250,-500.0,0.00011536,2]
[347801940,1736116242260,-574.0,0.00011536,2]
[347801941,1736116242270,-500.0,0.00011536,2]
[347801942,1736116242279,-500.0,0.00011536,2]
[347801943,1736116242289,-500.0,0.00011536,2]
[347801944,1736116242299,-500.0,0.00011536,2]
[347801945,1736116242310,-500.0,0.00011536,2]
[347801946,1736116242319,-525.0,0.00011536,2]
[347801947,1736116242328,-500.0,0.00011536,2]
[347801948,1736116242337,-500.0,0.00011536,2]
[347801949,1736116242347,-500.0,0.00011536,2]
[347801950,1736116242357,-512.87728437,0.00011536,2]
[347801951,1736116242367,-500.0,0.00011536,2]
[347801952,1736116242378,-500.0,0.00011536,2]
[347801953,1736116242388,-500.0,0.00011536,2]
[347801954,1736116242398,-500.0,0.00011536,2]
[347801955,1736116242407,-500.0,0.00011536,2]
[347801956,1736116242417,-500.0,0.00011536,2]
[347801957,1736116242428,-1488.2,0.00011537,2]
[347801958,1736116242440,-661.78,0.00011537,2]
[347801959,1736116242450,-2000.0,0.00011537,2]
[347801960,1736116242459,-200.0,0.00011537,2]
[347801961,1736116242469,-500.0,0.00011537,2]
[347801962,1736116242479,-500.0,0.00011537,2]
[347801963,1736116242489,-2000.0,0.00011537,2]
[347801964,1736116242499,-200.0,0.00011537,2]
[347801965,1736116242509,-561.96,0.00011537,2]
[347801966,1736116242518,-1535.44,0.00011537,2]
[347801968,1736116242528,-805.54,0.00011537,2]
[347801969,1736116242538,-632.38352764,0.00011537,2]
[347801970,1736116242547,-557.64070331,0.00011537,2]
[347801971,1736116242556,-283.89,0.00011537,2]
[347801972,1736116242566,-3000.0,0.00011537,2]
[347801973,1736116242575,-500.0,0.00011537,2]
[347801974,1736116242585,-500.0,0.00011537,2]
[347801975,1736116242595,-1254.688,0.00011537,2]
[347801976,1736116242604,-1396.33502301,0.0001154,2]
[347801977,1736116242614,-470.49435101,0.0001154,2]
[347801978,1736116242624,-1318.07143007,0.00011555,2]
[347801979,1736116242634,-587.0,0.00011586,2]
[347801981,1736116242643,-160.0,0.00011616,2]
[347801982,1736116242653,-172.35459794,0.00011638,2]
[347801983,1736116242663,-500.0,0.00011639,2]
[347801985,1736116242673,-500.0,0.00011639,2]
[347801986,1736116242683,-500.0,0.00011639,2]
[347801988,1736116242692,-500.0,0.00011639,2]
[347801990,1736116242702,-500.0,0.00011639,2]
[347801992,1736116242712,-500.0,0.00011639,2]
[347801994,1736116242722,-500.0,0.00011639,2]
[347801996,1736116242731,-340.65300167,0.00011639,2]
[347801998,1736116242741,-500.0,0.00011639,2]
[347802001,1736116242751,-517.67399898,0.00011639,2]
[347802003,1736116242760,-500.0,0.00011639,2]
[347802004,1736116242770,-500.0,0.00011639,2]
[347802005,1736116242780,-500.0,0.00011639,2]
[347802006,1736116242790,-191.80746674,0.00011639,2]
[347802007,1736116242800,-500.0,0.00011639,2]
[347802008,1736116242810,-500.0,0.00011639,2]
[347802009,1736116242820,-500.0,0.00011639,2]
[347802010,1736116242829,-500.0,0.00011639,2]
[347802011,1736116242838,-500.0,0.00011639,2]
[347802012,1736116242847,-500.42362975,0.00011639,2]
[347802013,1736116242857,-500.0,0.00011639,2]
[347802015,1736116242866,-320.01055817,0.00011639,2]
[347802017,1736116242876,-500.0,0.00011639,2]
[347802018,1736116242885,-500.14453577,0.00011639,2]
[347802019,1736116242898,-500.0,0.00011639,2]
[347802020,1736116242907,-500.0,0.00011639,2]
[347802021,1736116242917,-500.0,0.00011639,2]
[347802022,1736116242926,-500.0,0.00011639,2]
[347802023,1736116242935,-500.0,0.00011639,2]
[347802024,1736116242945,-500.0,0.00011639,2]
[347802025,1736116242954,-500.0,0.00011639,2]
[347802026,1736116242964,-500.0,0.00011639,2]
[347802027,1736116242974,-500.0,0.00011639,2]
[347802028,1736116242984,-500.0,0.00011639,2]
[347802029,1736116242994,-494.37335519,0.00011639,2]
[347802030,1736116243003,-505.1995822,0.00011639,2]
[347802031,1736116243013,-500.0,0.00011639,2]
[347802032,1736116243023,-500.0,0.00011639,2]
[347802033,1736116243032,-500.0,0.00011639,2]
[347802034,1736116243043,-500.0,0.00011639,2]
[347802035,1736116243052,-856.82237236,0.00011639,2]
[347802036,1736116243066,-1823.02986086,0.00011639,2]
[347802037,1736116243077,-8824.36755425,0.00011639,2]
[347802039,1736116243089,-999.99239335,0.00011639,2]
[347802049,1736116243175,-288.69365648,0.00011639,2]
[347802052,1736116243192,-3590.12471838,0.00011639,2]
[347802054,1736116243203,-1411.118258,0.00011639,2]
[347802056,1736116243215,-38597.40406977,0.00011639,2]
[347802059,1736116243225,-56405.56233894,0.00011639,2]
[347802061,1736116243236,-15301.21460308,0.00011639,2]
[347802071,1736116243292,-14704.4605622,0.00011639,2]
[347802075,1736116243308,-1054.0600005,0.00011639,2]
[347802077,1736116243320,-1762.5,0.00011639,2]
[347802079,1736116243331,-344.265,0.00011639,2]
[347802082,1736116243342,-1968.36,0.00011639,2]
[347802085,1736116243362,-19457.37976279,0.00011639,2]
[347802087,1736116243376,-9257.979785,0.00011639,2]
[347802090,1736116243387,-1140.7999994,0.00011639,2]
[347802092,1736116243399,-80912.73445076,0.00011639,2]
[347802094,1736116243411,-284.74638608,0.00011639,2]
[347802149,1736116245799,-495.76,0.00011535,2]
[347802150,1736116245809,-162983.82981002,0.00011639,2]
[347802151,1736116245821,-5353.0,0.00011639,2]
[347802152,1736116245838,-5675.57388188,0.00011639,2]
[347802153,1736116245894,-537.62,0.00011535,2]
[347802154,1736116245905,-1446.97500004,0.00011639,2]
[347802155,1736116245920,-148876.1267666,0.00011639,2]
[347802156,1736116245932,-20050.53034843,0.00011639,2]
[347802157,1736116245943,-501.35691065,0.00011639,2]
[347802158,1736116246010,-2313.37087213,0.00011639,2]
[347802159,1736116246021,-163136.56907228,0.00011639,2]
[347802160,1736116246033,-369.48017735,0.00011639,2]
[347802161,1736116246104,-389944.59562502,0.00011639,2]
[347802184,1736117379812,620.57370281,0.0002,120]
[347802188,1736117432043,-903.09,8.219e-05,2]
[347802189,1736117432053,-2175.35,9.646e-05,2]
[347802190,1736117432065,-250.0,9.649e-05,2]
[347802191,1736117432075,-1014.65,9.701e-05,2]
[347802192,1736117432084,-300.0,9.707e-05,2]
[347802193,1736117432095,-9795.51897814,9.708e-05,2]
[347802194,1736117432104,-163.38,9.709e-05,2]
[347802195,1736117432114,-1000.0,9.752e-05,2]
[347802196,1736117432124,-205.73,9.764e-05,2]
[347802197,1736117432134,-250.0,9.765e-05,2]
[347802198,1736117432144,-200.0,9.775e-05,2]
[347802199,1736117432154,-200.0,9.776e-05,2]
[347802200,1736117432164,-1928.15010788,9.78e-05,2]
[347802201,1736117432173,-200.0,9.786e-05,2]
[347802202,1736117432183,-200.0,9.788e-05,2]
[347802203,1736117432192,-489.60144552,9.788e-05,2]
[347802204,1736117432206,-1438.54866236,9.788e-05,2]
[347802205,1736117432215,-1928.15010788,9.79e-05,2]
[347802206,1736117432225,-1928.15010788,9.791e-05,2]
[347802207,1736117432234,-1928.15010788,9.8e-05,2]
[347802208,1736117432244,-1928.15010788,9.8e-05,2]
[347802209,1736117432253,-150.0,9.808e-05,2]
[347802210,1736117432263,-1167.65090612,9.828e-05,2]
[347802211,1736117432274,-681.30909388,9.828e-05,2]
[347802212,1736117432284,-571.16428636,9.907e-05,2]
[347802213,1736117432294,-202.76,0.0001,2]
[347802214,1736117432304,-571.16428647,0.0001,2]
[347802215,1736117432314,-71.33180175,0.00010014,2]
[347802216,1736117432325,-499.83248461,0.00010014,2]
[347802217,1736117432334,-167.05,0.00010078,2]
[347802218,1736117432345,-571.16428636,0.00010121,2]
[347802219,1736117432354,-155.02,0.00010137,2]
[347802220,1736117432364,-1489.14,0.00010143,2]
[347802221,1736117432374,-423.01019244,0.00010214,2]
[347802222,1736117432387,-500.27115914,0.00010214,2]
[347802223,1736117432399,-580.69864842,0.00010214,2]
[347802224,1736117432409,-571.16428636,0.00010228,2]
[347802225,1736117432418,-44.74196141,0.00010301,2]
[347802226,1736117432436,-108.82480459,0.00010301,2]
[347802227,1736117432445,-1523.52,0.0001031,2]
[347802228,1736117432455,-571.16428636,0.00010334,2]
[347802229,1736117432464,-1495.75,0.00010354,2]
[347802230,1736117432474,-0.74090905,0.00010385,2]
[347802231,1736117432502,-149.25909095,0.00010385,2]
[347802232,1736117432511,-864.84090905,0.00010404,2]
[347802233,1736117432524,-640.46909095,0.00010404,2]
[347802234,1736117432534,-1511.68,0.00010406,2]
[347802236,1736117432544,-1496.04,0.00010408,2]
[347802238,1736117432553,-1500.83,0.00010411,2]
[347802240,1736117432563,-1475.56,0.00010414,2]
[347802242,1736117432573,-1519.83,0.00010417,2]
[347802244,1736117432582,-1528.72,0.0001042,2]
[347802246,1736117432593,-1500.09,0.00010424,2]
[347802248,1736117432603,-1494.65,0.00010429,2]
[347802250,1736117432612,-1474.54,0.00010435,2]
[347802252,1736117432621,-571.16428636,0.00010441,2]
[347802254,1736117432631,-1510.07,0.00010442,2]
[347802255,1736117432640,-1498.45,0.0001045,2]
[347802256,1736117432650,-903.09,0.0001046,2]
[347802257,1736117432659,-1499.07,0.0001046,2]
[347802258,1736117432669,-1490.6,0.00010483,2]
[347802259,1736117432679,-1496.23,0.00010486,2]
[347802260,1736117432688,-1503.14,0.0001049,2]
[347802261,1736117432697,-983.09347218,0.00010496,2]
[347802263,1736117432708,-523.33652782,0.00010496,2]
[347802265,1736117432717,-1499.28,0.00010507,2]
[347802267,1736117432726,-1507.85,0.00010526,2]
[347802269,1736117432735,-571.16428636,0.00010548,2]
[347802271,1736117432745,-1507.57,0.00010557,2]
[347802273,1736117432754,-571.16428636,0.00010655,2]
[347802275,1736117432763,-420.0,0.00010678,2]
[347802276,1736117432772,-1499.95,0.00010752,2]
[347802278,1736117432781,-571.16428636,0.00010762,2]
[347802280,1736117432791,-1488.34,0.00010765,2]
[347802282,1736117432800,-150.0,0.00010775,2]
[347802284,1736117432809,-1478.4,0.00010782,2]
[347802286,1736117432819,-1510.57,0.00010805,2]
[347802288,1736117432828,-1498.5,0.00010835,2]
[347802291,1736117432838,-571.16428636,0.00010869,2]
[347802293,1736117432847,-1508.75,0.00010875,2]
[347802294,1736117432856,-2239.39,0.00010959,2]
[347802297,1736117432865,-150.0,0.00010959,2]
[347802298,1736117432875,-1000.0,0.0001097,2]
[347802300,1736117432884,-571.16428636,0.00010976,2]
[347802302,1736117432893,-150.35,0.0001098,2]
[347802304,1736117432902,-205.73,0.00010985,2]
[347802306,1736117432912,-400.0,0.00010986,2]
[347802308,1736117432921,-550.0,0.00011,2]
[347802310,1736117432930,-571.16428636,0.00011083,2]
[347802312,1736117432939,-571.16428636,0.0001119,2]
[347802314,1736117432949,-151.31,0.00011214,2]
[347802316,1736117432958,-152.04,0.00011214,2]
[347802318,1736117432967,-600.0,0.00011264,2]
[347802320,1736117432976,-500.0,0.00011264,2]
[347802321,1736117432985,-571.16428636,0.00011297,2]
[347802322,1736117432994,-347.68,0.00011342,2]
[347802323,1736117433003,-429.58022011,0.00011353,2]
[347802324,1736117433012,-500.0,0.00011366,2]
[347802325,1736117433022,-500.39547438,0.00011366,2]
[347802326,1736117433032,-500.0,0.00011366,2]
[347802327,1736117433042,-472.70884602,0.00011366,2]
[347802328,1736117433052,-500.0,0.00011366,2]
[347802329,1736117433062,-210.47041286,0.00011366,2]
[347802330,1736117433072,-510.11,0.00011366,2]
[347802331,1736117433082,-500.0,0.00011366,2]
[347802332,1736117433092,-500.0,0.00011366,2]
[347802333,1736117433102,-500.0,0.00011366,2]
[347802334,1736117433112,-500.0,0.00011366,2]
[347802335,1736117433122,-500.0,0.00011366,2]
[347802336,1736117433131,-560.75,0.00011366,2]
[347802337,1736117433141,-500.0,0.00011366,2]
[347802338,1736117433151,-500.0,0.00011366,2]
[347802339,1736117433161,-500.0,0.00011366,2]
[347802340,1736117433171,-500.0,0.00011366,2]
[347802341,1736117433181,-500.0,0.00011366,2]
[347802342,1736117433191,-500.0,0.00011366,2]
[347802343,1736117433201,-500.0,0.00011366,2]
[347802344,1736117433211,-500.0,0.00011366,2]
[347802345,1736117433221,-500.0,0.00011366,2]
[347802346,1736117433231,-500.0,0.00011366,2]
[347802347,1736117433241,-500.0,0.00011366,2]
[347802348,1736117433251,-411.65730734,0.00011366,2]
[347802349,1736117433261,-526.48,0.00011366,2]
[347802350,1736117433271,-500.0,0.00011366,2]
[347802351,1736117433281,-500.0,0.00011366,2]
[347802352,1736117433291,-500.0,0.00011366,2]
[347802353,1736117433302,-500.0,0.00011366,2]
[347802354,1736117433312,-574.13,0.00011366,2]
[347802355,1736117433322,-500.0,0.00011366,2]
[347802356,1736117433332,-500.0,0.00011366,2]
[347802357,1736117433342,-500.0,0.00011366,2]
[347802358,1736117433352,-500.0,0.00011366,2]
[347802359,1736117433362,-500.0,0.00011366,2]
[347802360,1736117433371,-500.0,0.00011366,2]
[347802361,1736117433380,-500.0,0.00011366,2]
[347802362,1736117433390,-500.0,0.00011366,2]
[347802363,1736117433400,-500.0,0.00011366,2]
[347802364,1736117433409,-500.0,0.00011366,2]
[347802365,1736117433419,-500.0,0.00011366,2]
[347802366,1736117433430,-500.0,0.00011366,2]
[347802367,1736117433441,-500.0,0.00011366,2]
[347802368,1736117433451,-500.0,0.00011366,2]
[347802369,1736117433461,-500.0,0.00011366,2]
[347802370,1736117433471,-219.31468623,0.00011366,2]
[347802371,1736117433482,-500.0,0.00011366,2]
[347802372,1736117433492,-500.0,0.00011366,2]
[347802373,1736117433502,-500.0,0.00011366,2]
[347802374,1736117433512,-500.0,0.00011366,2]
[347802375,1736117433523,-500.0,0.00011366,2]
[347802376,1736117433533,-500.0,0.00011366,2]
[347802377,1736117433543,-500.0,0.00011366,2]
[347802378,1736117433553,-500.0,0.00011366,2]
[347802379,1736117433563,-500.0,0.00011366,2]
[347802380,1736117433573,-500.0,0.00011366,2]
[347802381,1736117433583,-500.0,0.00011366,2]
[347802382,1736117433594,-500.0,0.00011366,2]
[347802383,1736117433605,-500.0,0.00011366,2]
[347802384,1736117433615,-500.0,0.00011366,2]
[347802385,1736117433625,-500.0,0.00011366,2]
[347802386,1736117433635,-500.0,0.00011366,2]
[347802387,1736117433645,-500.0,0.00011366,2]
[347802388,1736117433655,-500.0,0.00011366,2]
[347802389,1736117433666,-500.0,0.00011366,2]
[347802390,1736117433676,-500.0,0.00011366,2]
[347802391,1736117433686,-500.0,0.00011366,2]
[347802392,1736117433697,-500.0,0.00011366,2]
[347802393,1736117433707,-500.0,0.00011366,2]
[347802394,1736117433718,-500.0,0.00011366,2]
[347802395,1736117433728,-500.0,0.00011366,2]
[347802396,1736117433738,-500.0,0.00011366,2]
[347802397,1736117433748,-500.0,0.00011366,2]
[347802398,1736117433758,-500.0,0.00011366,2]
[347802399,1736117433768,-570.4,0.00011366,2]
[347802400,1736117433778,-500.0,0.00011366,2]
[347802401,1736117433788,-500.0,0.00011366,2]
[347802402,1736117433798,-500.0,0.00011366,2]
[347802403,1736117433808,-500.0,0.00011366,2]
[347802404,1736117433818,-500.0,0.00011366,2]
[347802405,1736117433828,-500.0,0.00011366,2]
[347802406,1736117433839,-500.0,0.00011366,2]
[347802407,1736117433849,-500.0,0.00011366,2]
[347802408,1736117433859,-500.0,0.00011366,2]
[347802409,1736117433870,-500.0,0.00011366,2]
[347802410,1736117433880,-444.54,0.00011366,2]
[347802411,1736117433889,-500.0,0.00011366,2]
[347802412,1736117433898,-500.0,0.00011366,2]
[347802413,1736117433908,-500.0,0.00011366,2]
[347802414,1736117433918,-500.0,0.00011366,2]
[347802415,1736117433928,-500.0,0.00011366,2]
[347802416,1736117433938,-500.0,0.00011366,2]
[347802417,1736117433948,-500.0,0.00011366,2]
[347802418,1736117433957,-500.0,0.00011366,2]
[347802419,1736117433967,-500.0,0.00011366,2]
[347802420,1736117433977,-500.0,0.00011366,2]
[347802421,1736117433987,-500.0,0.00011366,2]
[347802422,1736117433997,-500.0,0.00011366,2]
[347802423,1736117434007,-500.0,0.00011366,2]